Cogmind - Beta 14 @@@ ROGUE MODE // 2025.01.10 @ 18:58:42 Player: Byrnorthil Result: Destroyed by D-53 Grenadier with Mini Grenade Launcher Performance ------------- Evolutions (0) 0 Regions Visited (2) 400 Robots Destroyed (28) 140 Value Destroyed (609) 609 Prototype IDs (0) 0 Alien Tech Used (0) 0 Bonus (8) 8 TOTAL SCORE: 1157 Bonus ------- High Alert Combat Kills 8 Cogmind --------- Core Integrity 0/250 Matter 300/300 Energy 100/100 System Corruption 13% Temperature Cool (0) Movement Walking (120) Location -10/Mines Parts ------- > --- POWER (1) -------- (None) > --- PROPULSION (2) --- Aluminum Leg > --- UTILITY (2) ------ Small Storage Unit > --- WEAPON (2) ------- Flail Flail > --- INVENTORY (8) ---- Medium Storage Unit Seismic Detector Shock Absorption System Flail Flail Peak State ------------ > --- POWER ------------ (None) > --- PROPULSION ------- Aluminum Leg Flexi-carbon Leg > --- UTILITY ---------- Small Storage Unit Medium Armor Plating > --- WEAPON ----------- Flail Flail > --- INVENTORY -------- Aluminum Leg Medium Storage Unit Seismic Detector Medium Armor Plating Medium Armor Plating Grenade Launcher Flail Flail [Rating: 14] Favorites ----------- Power Light Ion Engine Engine Light Ion Engine Propulsion Aluminum Leg Leg Aluminum Leg Utility Small Storage Unit Device Seismic Detector Storage Small Storage Unit Protection Medium Armor Plating Weapon Flail Energy Gun Medium Laser Ballistic Gun Light Assault Rifle Launcher Grenade Launcher Impact Weapon Flail Build | -11 -10 -10 ------- Run | Yrd Mat Min Slots Evolved . | . . . Power . | . . . Propulsion . | . . . Utility . | . . . Weapon . | . . . Parts Attached 37 | 9 17 11 Power 2 | 1 1 . Engine 2 | 1 1 . Core . | . . . Reactor . | . . . Propulsion 6 | 2 1 3 Treads . | . . . Leg 6 | 2 1 3 Wheel . | . . . Hover . | . . . Flight . | . . . Utility 15 | 3 9 3 Device 6 | 2 4 . Storage 1 | 1 . . Processor . | . . . Hackware . | . . . Protection 8 | . 5 3 Artifact . | . . . Weapon 14 | 3 6 5 Energy Gun 2 | 2 . . Energy Cannon . | . . . Ballistic Gun 1 | 1 . . Ballistic Cannon . | . . . Launcher 4 | . 2 2 Special Weapon . | . . . Impact Weapon 7 | . 4 3 Slashing Weapon . | . . . Piercing Weapon . | . . . Special Melee Weapon . | . . . Unidentified Prototypes . | . . . Corrupted Parts 1 | . . 1 System Corruption 13 | . . 13 Parts Lost 11 | . 3 8 Power 2 | . 1 1 Propulsion 4 | . 1 3 Utility 4 | . 1 3 Weapon 1 | . . 1 Highest Loss Streak 7 | . 2 7 To Critical Strikes . | . . . Average Slot Usage (%) 97 | . 99 80 Engine 12 | . 13 3 Leg 27 | . 27 20 Device 5 | . 5 . Storage 14 | . 14 14 Protection 8 | . 8 12 Energy Gun 1 | . 1 . Ballistic Gun 1 | . 1 . Impact Weapon 23 | . 23 24 Peak Build Rating 14 | 9 11 14 Average Rating 9 | 5 10 9 On Entrance 5 | . 7 10 Naked Turns . | . . . Heaviest Build 20 | 12 20 20 Greatest Support 20 | 20 20 20 Greatest Overweight (x) 1 | . . 1 Average Overweight (x) . | . . . Largest Inventory Capacity 8 | 8 8 8 Average Capacity 7 | 7 8 8 Most Carried 8 | 5 8 8 Average Carried 7 | 3 7 6 Final Capacity 8 | 8 8 8 Final Carried 8 | 5 8 5 Class Distribution -------------------- 100% | Mutant Dominant Class ---------------- Mutant | -10/Materials Mutant | -10/Mines Resources | -11 -10 -10 ----------- Run | Yrd Mat Min Matter Collected 594 | 283 206 105 Remotely . | . . . Salvage Created 941 | 41 695 205 Parts 31 | 7 19 5 Haulers Intercepted 2 | . 2 . Recyclers Shooed 2 | . 1 1 Parts Field Recycled . | . . . Retrieved Matter . | . . . Parts Self-Destructed . | . . . Prevented . | . . . Kills | -11 -10 -10 ------- Run | Yrd Mat Min Combat Hostiles Destroyed 24 | . 16 8 Melee 8 | . 4 4 Guns 1 | . 1 . AOE 6 | . 2 4 Classes Destroyed 7 | 1 5 1 Tunneler 2 | 2 . . Hauler 2 | . 2 . Recycler 3 | . 1 2 Watcher 2 | . 2 . Swarmer 6 | . 3 3 Grunt 13 | . 13 . Assembled 5 | . . 5 Best Kill Streak 7 | 1 3 7 Combat Bots Only 5 | . 2 5 Max Kills in Single Turn 3 | 1 1 3 Gunslinging . | . . . Exploded 3 | . 1 3 Melee 1 | . 1 1 Uniques/NPCs Destroyed . | . . . Combat | -11 -10 -10 -------- Run | Yrd Mat Min Hostile Shots Fired 156 | . 82 74 Missed 39 | . 24 15 Damage Taken 1619 | . 683 936 Core 264 | . 108 156 Absorbed by Shields . | . . . Core Remaining (%) 100 | 100 . . Volleys Fired 31 | 7 22 2 Largest 2 | 2 2 1 Hottest 70 | 70 70 30 Shots Fired 57 | 14 41 2 Gun 52 | 14 38 . Cannon . | . . . Launcher 5 | . 3 2 Special . | . . . Kinetic 26 | 7 19 . Thermal 26 | 7 19 . Explosive 5 | . 3 2 Electromagnetic . | . . . Robot Hit Streak 5 | 4 5 . Robot Miss Streak 6 | 1 6 2 Penetration Max . | . . . Secondary Targets . | . . . Shots Hit Robots 81 | 9 58 14 Core Hits 27 | 3 14 10 Critical Kills 1 | . . 1 Critical Parts Destroyed 14 | . 9 5 Critical Strikes 16 | . 10 6 Burn 1 | . 1 . Smash 15 | . 9 6 Melee Attacks 85 | . 62 23 Impact 85 | . 62 23 Slashing . | . . . Piercing . | . . . Sneak Attacks 6 | . 4 2 Combat Hostiles . | . . . Follow-up Attacks 12 | . 10 2 Damage Inflicted 2808 | 85 1798 925 Guns 303 | 85 218 . Cannons . | . . . Explosions 415 | . 170 245 Melee 2087 | . 1407 680 Ramming 3 | . 3 . Kinetic 127 | 34 93 . Thermal 176 | 51 125 . Explosive 415 | . 170 245 Electromagnetic . | . . . Impact 2087 | . 1407 680 Slashing . | . . . Piercing . | . . . Highest Corruption 13 | . . 13 Average Corruption 13 | . . 13 Corruption Purged . | . . . Corruption Blocked . | . . . Effects 2 | . . 2 Heat Flow Errors 1 | . . 1 Parts Rejected 1 | . . 1 Overload Shots . | . . . Overflow Damage 825 | . 490 335 Projectiles . | . . . Explosions 13 | . 3 10 Melee 812 | . 487 325 Knockbacks 7 | . 4 3 Impact 7 | . 4 3 Kinetic . | . . . Secondary . | . . . Self-Inflicted Damage 85 | . 40 45 Shots 4 | . 2 2 Rammed . | . . . Targets Rammed 2 | . 2 . Kicked 2 | . 2 . Crushed . | . . . Highest Temperature 254 | 70 254 198 Average Temperature 76 | 28 90 87 Received Heat Transfer 418 | . 318 100 Effects 3 | . 3 . Interference 3 | . 3 . Siege Activations . | . . . Robots Corrupted 11 | . 10 1 Combat Hostiles 8 | . 8 . Parts Fried 13 | . 13 . Impact Corruptions 33 | . 22 11 Robots Melted 1 | . 1 . Combat Hostiles 1 | . 1 . Parts Melted . | . . . Heat Transferred 592 | 148 444 . Parts Sabotaged . | . . . Parts Stolen . | . . . Parts Stripped . | . . . Power Chain Reactions . | . . . Alert | -11 -10 -10 ------- Run | Yrd Mat Min Peak Influence 445 | 10 445 219 Initial 129 | . 6 129 Average 196 | 2 218 183 Maximum Alert Level 2 | . 2 1 Low Security (%) 52 | 100 45 75 Level 1 37 | . 42 25 Level 2 10 | . 12 . Level 3 . | . . . Level 4 . | . . . Level 5 . | . . . High Security . | . . . Max Security . | . . . Squads Dispatched 4 | . 4 . Investigation 2 | . 2 . Extermination . | . . . Reinforcement 2 | . 2 . Assault . | . . . Garrison . | . . . Intercept . | . . . Searches Triggered . | . . . Construction Impeded . | . . . Haulers Reinforced . | . . . Active Scanning Responses . | . . . Cargo Convoy Interrupts . | . . . Stealth | -11 -10 -10 --------- Run | Yrd Mat Min Distress Signals 5 | . 5 . Communications Jammed . | . . . Distress Signals . | . . . Times Spotted 57 | . 34 23 Peak Tracking Total 19 | . 5 19 Tactical Retreats 6 | . 4 2 Traps | -11 -10 -10 ------- Run | Yrd Mat Min Traps Triggered . | . . . Indirectly . | . . . Trap Hack Attempts . | . . . Triggered . | . . . Disarmed . | . . . Reprogrammed . | . . . Reused . | . . . Traps Extracted . | . . . Installed . | . . . Triggered . | . . . Machines | -11 -10 -10 ---------- Run | Yrd Mat Min Machines Disabled . | . . . Max in Single Turn . | . . . Machines Repaired . | . . . Machines Dismantled . | . . . Machines Sabotaged . | . . . Overloaded Fab Kills . | . . . Hacking | -11 -10 -10 --------- Run | Yrd Mat Min Machines Accessed 9 | . 9 . Terminals 6 | . 6 . Fabricators . | . . . Repair Stations 1 | . 1 . Recycling Units 2 | . 2 . Scanalyzers . | . . . Garrison Access . | . . . Total Hacks 41 | . 41 . Successful 23 | . 23 . Failed 17 | . 17 . Catastrophic . | . . . Database Lockouts 1 | . 1 . Manual 35 | . 35 . Terminals 28 | . 28 . Fabricators . | . . . Repair Stations 2 | . 2 . Recycling Units 11 | . 11 . Scanalyzers . | . . . Garrison Access . | . . . Terminal Hacks 8 | . 8 . Robot Analysis 4 | . 4 . Terminal Index 1 | . 1 . Alert Level 1 | . 1 . Locate Traps 1 | . 1 . Zone Layout 1 | . 1 . Fabricator Hacks . | . . . Repair Station Hacks . | . . . Recycling Unit Hacks 2 | . 2 . Report Inventory 2 | . 2 . Scanalyzer . | . . . Garrison Access Hacks . | . . . Unauthorized Hacks 13 | . 13 . Terminals 8 | . 8 . Track 1 | . 1 . Botnet 2 | . 2 . Operators 1 | . 1 . Skim 4 | . 4 . Fabricators . | . . . Repair Stations . | . . . Recycling Units 5 | . 5 . Reject 1 | . 1 . Recyclers 1 | . 1 . Mask 1 | . 1 . Tunnel 2 | . 2 . Scanalyzers . | . . . Garrison Access . | . . . Data Cores Recovered . | . . . Used . | . . . Hacking Detections 7 | . 7 . Full Trace Events . | . . . Feedback Events . | . . . Feedback Blocked . | . . . Robot Schematics Acquired . | . . . Robots Built . | . . . Authchips . | . . . Time . | . . . Total Robot Build Rating . | . . . Part Schematics Acquired . | . . . Parts Built . | . . . Authchips . | . . . Time . | . . . Total Part Build Rating . | . . . Parts Repaired . | . . . Time . | . . . Parts Recycled . | . . . Recycled Matter . | . . . Retrieved Matter . | . . . Retrieved Components . | . . . Parts Scanalyzed . | . . . Part Schematics Acquired . | . . . Parts Damaged . | . . . Bothacking | -11 -10 -10 ------------ Run | Yrd Mat Min Used RIF Installer . | . . . Robots Hacked . | . . . Non-combat . | . . . Combat . | . . . Robot Hacks Applied . | . . . Relay Couplers Released . | . . . Fabnet Peak Effective % . | . . . Robots Rewired . | . . . Allies Hacked . | . . . Hacks Repelled . | . . . Allies | -11 -10 -10 -------- Run | Yrd Mat Min Total Allies . | . . . Largest Group . | . . . Highest-Rated Group . | . . . Highest-Rated Ally . | . . . Total Orders . | . . . Ally Attacks . | . . . Total Damage . | . . . Kills . | . . . Allies Corrupted . | . . . Allies Melted . | . . . Intel | -11 -10 -10 ------- Run | Yrd Mat Min Robot Analysis Total 4 | . 4 . Derelict Logs Recovered . | . . . Drone Launches . | . . . Drone Recoveries . | . . . Exploration | -11 -10 -10 ------------- Run | Yrd Mat Min Turns Passed 1465 | 134 1219 112 Spaces Moved 819 | 82 707 30 Core 2 | 2 . . Treads . | . . . Legs 817 | 80 707 30 Wheels . | . . . Hover . | . . . Flight . | . . . Fastest Speed 50 | 50 120 120 Average Speed 121 | 118 120 159 Slowest Speed 190 | 120 120 190 Overloaded Moves . | . . . Propulsion Burnouts . | . . . Robots Hopped . | . . . Cave-ins Triggered . | . . . Exploration Rate (%) 37 | 5 92 14 Regions Visited 2 Branch Regions 1 Pre-discovered Areas 2 | . 2 . Known Exits Taken . | . . . Unknown Exits Taken 2 | 1 1 . Scrap Searched . | . . . Spaces Dug 1 | . 1 . Terrain Destroyed 34 | . 19 15 Melee 1 | . 1 . Projectile . | . . . AOE 33 | . 18 15 Terrain Rammed . | . . . Walls Destroyed . | . . . Machines Disabled . | . . . Actions | -11 -10 -10 --------- Run | Yrd Mat Min Total 1125 | 102 961 62 Wait 139 | . 139 . Move 817 | 81 706 30 Hop . | . . . Pick Up 19 | 5 13 1 Fast Attach 12 | 7 4 1 Attach 7 | . 2 5 Detach 1 | . 1 . Swap 18 | 2 11 5 Drop 11 | . 11 . Fire 31 | 7 22 2 Melee 68 | . 50 18 Ram . | . . . Kick 2 | . 2 . Crush . | . . . Escape Stasis . | . . . Rewire . | . . . Trap . | . . . Miscellaneous . | . . . Route ------- -11/Scrapyard -10/Materials (discovered 4 exits: [*Mat x3] / [*Min]) -10/Mines History --------- Turn | Location | Event 2 | -11/Scrapyard | Met Revision 17 5 | -11/Scrapyard | Discovered new exit (range 16) 135 | -11/Scrapyard | Entered Materials 341 | -10/Materials | Build established: Mutant 389 | -10/Materials | Discovered new exit (range 16) 721 | -10/Materials | Discovered new exit (range 14) 829 | -10/Materials | Discovered new exit (range 16) 1057 | -10/Materials | Central database locked down 1218 | -10/Materials | Discovered new exit (range 12) 1354 | -10/Materials | Entered Mines 1355 | -10/Mines | Assembled infested the area 1357 | -10/Mines | Met a Derelict bent on vengeance 1360 | -10/Mines | Assisted by a Guerilla fighting off Assembled 1382 | -10/Mines | Core integrity fell below 50% 1389 | -10/Mines | System corruption reached 10% 1404 | -10/Mines | Core integrity fell below 20% 1445 | -10/Mines | Lost 7 parts (1p3n2u1w) 1466 | -10/Mines | Destroyed by D-53 Grenadier with Mini Grenade Launcher Last Messages --------------- 01434_ Sneak attack on R-06 Scavenger. 01434_ Destroyed Com. Wheel. 01434_ R-06 Scavenger system corrupted by crushing effect. 01434_ R-06 Scavenger knocked back. 01436_ R-06 Scavenger suffers critical hit (Smash). 01436_ Destroyed Com. Wheel. 01436_ Destroyed Lgt. Ion Engine. 01436_ R-06 Scavenger system corrupted by crushing effect. 01436_ R-06 Scavenger knocked back. 01437_ R-06 Scavenger system terminally corrupted. 01439_ Acquired 85 matter. 01441_ U-05 Engineer builds a Wall. 01443_ Acquired Shock Absorption System. 01444_ Acquired 12 matter. 01444_ U-05 Engineer lays Concrete. 01445_ U-05 Engineer builds a Wall. 01454_ U-05 Engineer lays Concrete. 01462_ Med. Armor Plating destroyed. 01463_ The unstable cave ceiling collapses. 01464_ U-05 Engineer builds a Wall. Map ----- +----------------------------------------------------+ | ??????????????????????????????????????????? | | ??????????????????????????????????????????? | | ??????????????????????????????????????????? | | ??????????????????????????????????????????? | | ??????????????????????????????????????????? | | ??????????????????????????????????????????? | | ??????????????????????????????????????????? | | ??????????????????????????????????????????? | | ??????????????????????????????????????????? | | ??????????????????????????????????????????? | | ??????????????????????????????????????????? | | ??????????????????????????????????????????? | | ??????????????????????????????????????????? | | ??????????###?????????????????????????????? | | ?????????## u#??###?#??##?????????????????? | | ????????## % ## # #?? ##????????????????? | | ???###### #%#? # ###? #???????????? | | ???# # # ## # #???????????? | | ???????#] ????????????? | | ???????????# ????????????? | | ???#???????## # # # #???????????????? | | ???# ??????# % # # #? #?????????????? | | ???# ####### # #?????????????? | | ???# # #?????????????? | | ???# # #??????????????? | | ???# =* @d # #??????????????? | | ???# *%= # #???????????????? | | ???# [% # = a #???##???????????????? | | ???# ## #????????????????????? | | ???#### ##### # ###????????????????????? | | ????#######???# ??????????????????????? | | ?????????????? ?????????????????????? | | ?????????????# ????????????????????? | | ?????????????## ???????????????????? | | ??????????????# < ??????????????????? | | ?????????????? #?????????????????? | | ?????????????? ??????????????????? | | ?????????????? ??????????????????? | | ????????????? ??????????????????? | | ?????????????? ????????????????????? | | ?????????????? ??????????????????????? | | ??????????????? ##????????????????????????? | | ??????????????????????????????????????????? | | ??????????????????????????????????????????? | | ??????????????????????????????????????????? | | ??????????????????????????????????????????? | | ??????????????????????????????????????????? | | ??????????????????????????????????????????? | | ??????????????????????????????????????????? | | ??????????????????????????????????????????? | +----------------------------------------------------+ Best States ------------- Heat Dissipation 25 Energy Generation 10 Energy Capacity 125 Matter Stores 300 Matter Capacity 300 Sight Range 16 Terrain Scan Range 16 Terrain Scan Density 10 Armor Coverage 225 Evasion (%) 55 Item Schematics ----------------- None Robot Schematics ------------------ None Fabricated ------------ Nothing Alien Tech Used ----------------- None Achievements -------------- None Challenges ------------ None Game ------ Seed MeleeReinforcedFragment Manual? 0 Play Time 00:21:17 Cumulative 176.3 hours Start 2025.01.10 @ 18:28:47 End 2025.01.10 @ 18:58:42 Sessions 1 Manual Loads 0 Difficulty Rogue Special Mode None Game No. 54 Rogue 54 Adventurer 0 Explorer 0 Win Type - Total 2 Types 1/0/1/0/0/0/0/0/0 Lore% 59 Gallery% 70 Achievement% 61 Wizard Run 0 Options --------- Layout 0 ASCII 0 Keyboard 1 Movement Arrows Keybinds 0 Fullscreen 2 Font 36/Terminus++ Map View 76x50 Zoom Use 0% Tactical HUD 1 Map Filters NONE Filters NONE Steam 1 RUN: a0d30567-a73c-49af-9e7e-c96277ef21eb